Workbook

Sheet Anasayfa

Sheet Parametreler Yolluk
A2: 2 | B2: 0
C3: S Ü R E K L İ G Ö R E V Y O L L U Ğ U
I4: Lütfen sıra atlamadan yazınız. | AH4: Babası
C5: Adı Soyadı | E5: İhsan HOMAN | G5: Personel Yakınları | I5: Adı Soyadı | J5: Yakınlık Der. | AH5: Eşi
C6: Unvanı | E6: Öğretmen | G6: 1.Kişi | I6: abc | J6: Kızı | AH6: Oğlu
C7: Kadro/Derece | E7: 1/1-3000 | G7: 2.Kişi | AH7: Kızı
C8: T.C. NO: | E8: 12345678910 | G8: 3.Kişi | H8: ŞEMA N | AH8: Annesi
G9: 4.Kişi | AH9: Diğer
C10: Eşi memur olup yolluk almış mı? | E10: 0.025 | G10: 5.Kişi
G11: 6.Kişi
E12: 0.05 | G12: 7.Kişi
C13: Dairesi | E13: Artuklu İlçe Millî Eğitim Müdürlüğü | G13: 8.Kişi
C14: Kurumu | E14: Abdulkadir Tutaşı İlkokulu | G14: 9.Kişi
G15: 10.Kişi
C16: Gerçekleştirme Görevlisi | E16: İhsan HOMAN
C17: Görevi | E17: Okul Müdürü | G17: Gün sayısı | I17: 1
C18: Harcama Yetkilisi | E18: Boş bırakılabilir. | G18: Gündeliği | I18: 39.75
C19: Görevi | E19: Boş bırakılabilir. | F19: Boş bırakılabilir. | G19: Taşıt ücreti | I19: 10
C20: Muhasebe Yetkilisi | E20: Boş bırakılabilir. | F20: Boş bırakılabilir. | G20: Eski görev yeri | I20: Mardin-Artuklu
A21: TVİN | C21: Görevi | E21: Boş bırakılabilir. | F21: Boş bırakılabilir. | G21: Yeni atandığı yer | I21: Mardin-Yeşilli
C22: Muhasebe Birimi Adı | E22: Boş bırakılabilir. | F22: Boş bırakılabilir. | G22: Mesafe (Km) | I22: 10
C23: Banka hesap no | E23: Boş bırakılabilir. | F23: Boş bırakılabilir. | G23: Atama tarihi | I23: 2018-12-31
C24: Banka şubesi | E24: Boş bırakılabilir. | F24: Boş bırakılabilir. | G24: Önceden Avans Almışsa Aldığı Saymanlık ve Tarihi | I24: YOK
C25: Bütçe Yılı | E25: 2019

Sheet Yolluk
S2: =T2*T3 -> 19.875 | T2: =IF('Parametreler Yolluk'!A2=2,F7*0.05,F7*0.025) -> 1.9875
D3: Adı ve Soyadı | F3: =memur -> İhsan HOMAN | H3: YURT İÇİ SÜREKLİ GÖREV YOLLUĞU BİLDİRİMİ | N3: Dairesi | O3: ='Parametreler Yolluk'!$E$13 -> Artuklu İlçe Millî Eğitim Müdürlüğü | T3: ='Parametreler Yolluk'!I22 -> 10
D4: T.C. Kimlik No | F4: ='Parametreler Yolluk'!$E$8 -> 12345678910 | N4: Kurumu | O4: ='Parametreler Yolluk'!$E$14 -> Abdulkadir Tutaşı İlkokulu
D5: Unvanı | F5: =unvan -> Öğretmen | N5: Bütçe Yılı | O5: ='Parametreler Yolluk'!$E$25 -> 2019
D6: Aylık Kadro Derecesi ve Ek Göstergesi | F6: =derece -> 1/1-3000 | N6: Önceden Avans Almışsa Aldığı Saymanlık ve Tarihi | O6: ='Parametreler Yolluk'!I24 -> YOK
D7: Gündeliği | F7: =yevmiye -> 39.75 | N7: Atama Tarihi | O7: ='Parametreler Yolluk'!$I$23 -> 2018-12-31
D8: Nerden Nereye Gidildiği | F8: Adı Soyadı | G8: Akrabalık Derecesi | H8: G Ü N D E L İ K L E R | K8: Taşıt Ücreti | L8: YER DEĞİŞTİRME GİDERİ | O8: T O P L A M
L9: Sabit Unsur | M9: Değişken Unsur
H10: Gün Sayısı | I10: Yevmiye | J10: TUTARI | L10: TL | M10: Mesfe Km/Mil | N10: Tutarı | O10: 1 + 2 + 3 + 4
J11: 1 | K11: 2 | L11: 3 | N11: 4
D12: =IF(F12="","",'Parametreler Yolluk'!$I$20&" - "&'Parametreler Yolluk'!$I$21) -> Mardin-Artuklu - Mardin-Yeşilli | F12: =IF(memur="","",'Parametreler Yolluk'!E5) -> İhsan HOMAN | G12: =IF(F12="",0,"Kendisi") -> Kendisi | H12: =IF(F12="",0,'Parametreler Yolluk'!$I$17) -> 1 | I12: =IF(F12="",0,$F$7) -> 39.75 | J12: =IF(F12="",0,H12*I12) -> 39.75 | K12: =IF(F12="",0,'Parametreler Yolluk'!$I$19) -> 10 | L12: =IF(F12="",0,I12*S12) -> 795 | M12: =IF(F12="","",$T$3&" * "&$T$2) -> 10 * 1,9875 | N12: =IF(F12="",0,S2) -> 19.875 | O12: =IF(L12="-",J12+K12+N12,J12+K12+L12+N12) -> 864.625 | S12: =IF(F12="","",20) -> 20
D13: =IF(F13="","",'Parametreler Yolluk'!$I$20&" - "&'Parametreler Yolluk'!$I$21) -> Mardin-Artuklu - Mardin-Yeşilli | F13: =IF('Parametreler Yolluk'!I6="","",'Parametreler Yolluk'!I6) -> abc | G13: =IF(F13="",0,'Parametreler Yolluk'!J6) -> Kızı | H13: =IF(F13="",0,'Parametreler Yolluk'!$I$17) -> 1 | I13: =IF(F13="",0,$F$7) -> 39.75 | J13: =IF(F13="",0,H13*I13) -> 39.75 | K13: =IF(F13="",0,'Parametreler Yolluk'!$I$19) -> 10 | L13: =IF(F13="",0,IF(S12>=60,0,I13*S13)) -> 397.5 | O13: =IF(L13="-",J13+K13+N13,J13+K13+L13+N13) -> 447.25 | S13: =IF(F13="","",10) -> 10
D14: =IF(F14="","",'Parametreler Yolluk'!$I$20&" - "&'Parametreler Yolluk'!$I$21) ->  | F14: =IF('Parametreler Yolluk'!I7="","",'Parametreler Yolluk'!I7) ->  | G14: =IF(F14="",0,'Parametreler Yolluk'!J7) -> 0 | H14: =IF(F14="",0,'Parametreler Yolluk'!$I$17) -> 0 | I14: 0 | J14: 0 | K14: =IF(F14="",0,'Parametreler Yolluk'!$I$19) -> 0 | L14: =IF(F14="",0,IF((S12+S13)>=60,0,I14*S14)) -> 0 | O14: 0
D15: =IF(F15="","",'Parametreler Yolluk'!$I$20&" - "&'Parametreler Yolluk'!$I$21) ->  | F15: =IF('Parametreler Yolluk'!I8="","",'Parametreler Yolluk'!I8) ->  | G15: =IF(F15="",0,'Parametreler Yolluk'!J8) -> 0 | H15: =IF(F15="",0,'Parametreler Yolluk'!$I$17) -> 0 | I15: 0 | J15: 0 | K15: =IF(F15="",0,'Parametreler Yolluk'!$I$19) -> 0 | L15: =IF(F15="",0,IF((S12+S13+S14)>=60,0,I15*S15)) -> 0 | O15: 0
D16: =IF(F16="","",'Parametreler Yolluk'!$I$20&" - "&'Parametreler Yolluk'!$I$21) ->  | F16: =IF('Parametreler Yolluk'!I9="","",'Parametreler Yolluk'!I9) ->  | G16: =IF(F16="",0,'Parametreler Yolluk'!J9) -> 0 | H16: =IF(F16="",0,'Parametreler Yolluk'!$I$17) -> 0 | I16: 0 | J16: 0 | K16: =IF(F16="",0,'Parametreler Yolluk'!$I$19) -> 0 | L16: =IF(F16="",0,IF((S12+S13+S14+S15)>=60,0,I16*S16)) -> 0 | O16: 0
D17: =IF(F17="","",'Parametreler Yolluk'!$I$20&" - "&'Parametreler Yolluk'!$I$21) ->  | F17: =IF('Parametreler Yolluk'!I10="","",'Parametreler Yolluk'!I10) ->  | G17: =IF(F17="",0,'Parametreler Yolluk'!J10) -> 0 | H17: =IF(F17="",0,'Parametreler Yolluk'!$I$17) -> 0 | I17: 0 | J17: 0 | K17: =IF(F17="",0,'Parametreler Yolluk'!$I$19) -> 0 | L17: =IF(F17="",0,IF((S12+S13+S14+S15+S16)>=60,"-",I17*S17)) -> 0 | O17: 0
D18: =IF(F18="","",'Parametreler Yolluk'!$I$20&" - "&'Parametreler Yolluk'!$I$21) ->  | F18: =IF('Parametreler Yolluk'!I11="","",'Parametreler Yolluk'!I11) ->  | G18: =IF(F18="",0,'Parametreler Yolluk'!J11) -> 0 | H18: =IF(F18="",0,'Parametreler Yolluk'!$I$17) -> 0 | I18: 0 | J18: 0 | K18: =IF(F18="",0,'Parametreler Yolluk'!$I$19) -> 0 | L18: =IF(F18="",0,IF((S12+S13+S14+S15+S16+S17)>=60,"-",I18*S18)) -> 0 | O18: 0
D19: =IF(F19="","",'Parametreler Yolluk'!$I$20&" - "&'Parametreler Yolluk'!$I$21) ->  | F19: =IF('Parametreler Yolluk'!I12="","",'Parametreler Yolluk'!I12) ->  | G19: =IF(F19="",0,'Parametreler Yolluk'!J12) -> 0 | H19: =IF(F19="",0,'Parametreler Yolluk'!$I$17) -> 0 | I19: =IF(F19="",0,$F$7) -> 0 | J19: =IF(F19="",0,H19*I19) -> 0 | K19: =IF(F19="",0,'Parametreler Yolluk'!$I$19) -> 0
D20: =IF(F20="","",'Parametreler Yolluk'!$I$20&" - "&'Parametreler Yolluk'!$I$21) ->  | F20: =IF('Parametreler Yolluk'!I13="","",'Parametreler Yolluk'!I13) ->  | G20: =IF(F20="",0,'Parametreler Yolluk'!J13) -> 0 | H20: =IF(F20="",0,'Parametreler Yolluk'!$I$17) -> 0 | I20: =IF(F20="",0,$F$7) -> 0 | J20: =IF(F20="",0,H20*I20) -> 0 | K20: =IF(F20="",0,'Parametreler Yolluk'!$I$19) -> 0 | L20: =IF(F20="",0,IF((S12+S13+S14+S15+S16+S17+S18+S19)>=60,"-",I20*S20)) -> 0 | O20: 0
D21: =IF(F21="","",'Parametreler Yolluk'!$I$20&" - "&'Parametreler Yolluk'!$I$21) ->  | F21: =IF('Parametreler Yolluk'!I14="","",'Parametreler Yolluk'!I14) ->  | G21: =IF(F21="",0,'Parametreler Yolluk'!J14) -> 0 | H21: =IF(F21="",0,'Parametreler Yolluk'!$I$17) -> 0 | I21: =IF(F21="",0,$F$7) -> 0 | J21: =IF(F21="",0,H21*I21) -> 0 | K21: =IF(F21="",0,'Parametreler Yolluk'!$I$19) -> 0 | L21: =IF(F21="",0,IF((S12+S13+S14+S15+S16+S17+S18+S19+S20)>=60,"-",I21*S21)) -> 0
D26: G E N E L T O P L A M | H26: =SUM(H12:H25) -> 2 | I26: =SUM(I12:I25) -> 79.5 | J26: =SUM(J12:J25) -> 79.5 | K26: =SUM(K12:K25) -> 20 | L26: =SUM(L12:L25) -> 1192.5 | M26: =M12 -> 10 * 1,9875 | N26: =N12 -> 19.875 | O26: =SUM(O12:O25) -> 1311.875
E27: =" "&'Parametreler Yolluk'!I20&" 'dan "&'Parametreler Yolluk'!I21&" 'ya atanan"&" "&$F$3&" "&" ve aile fertlerine ait yurtiçi sürekli görev yolluğu" -> Mardin-Artuklu 'dan Mardin-Yeşilli 'ya atanan İhsan HOMAN ve aile fertlerine ait yurtiçi sürekli görev yolluğu
E28: ="olarak tahakkuk eden "&UPPER([1]!YaziyaCevir(O26))&" gösterir bildirimdir." -> olarak tahakkuk eden BİNÜÇYÜZONBİR LİRA SEKSENSEKİZ KURUŞTUR gösterir bildirimdir. | O28: =TODAY() -> 2019-07-01
K30: Birim Yetkilisi (1)
J32: Adı ve Soyadı: | K32: ='Parametreler Yolluk'!E16 -> İhsan HOMAN
J33: Ünvanı: | K33: ='Parametreler Yolluk'!E17 -> Okul Müdürü
E34: (1) Bu kısım bildirim sahibinin atama işleminden | J34: İmzası: | K34: ......................
E35: bilgisi olan amir tarafından imzalanacaktır.

Sheet Parametreler Personel Nakil Bil
A1: PERSONEL NAKİL BİLDİRİMİ
A2: Adı Soyadı: | C2: İhsan HOMAN | F2: Şahsi ve Aile Yolluğunu Alıp Almadığı, Almışsa Tutarı: (Tutar otomatik yazılacaktır.) | H2: =Yolluk!$O$26 -> 1311.875
A3: Saymanlık Sistem No: | C3: 1234567 | F3: 15 Gün İçinde Hareket Etmediği Takdirde Gecikme Nedeni: | H3: HAREKET EDİLMESİ TEBLİĞ EDİLMİŞTİR.
A4: Sendika Adı: | C4: FREE-SEN | F4: Eğitime Hazırlık Ödeneği Aldı mı? | H4: 2018-2019 EĞİTİM-ÖĞRETİM YILI İÇİN ALMIŞTIR.
A5: Derece ve Kademesi: | C5: Eski | D5: Yeni | F5: Almış Olduğu Sağlık Raporlarının Yıl İçindeki Toplam Süresi (Heyet Raporu Hariç): | H5: YOK
C6: 4/2 | D6: 4/3 | F6: Promosyon Bilgisi: | H6: 2018-2019-2020 YILLARI İÇİN ALMIŞTIR.
A7: Görev Ünvanı: | C7: Eski | D7: Yeni | F7: Borçlu İse Borçlarına Ait Bilgiler: | H7: BİLİNEN BORCU YOKTUR.
C8: ÖĞRETMEN | D8: ÖĞRETMEN | F8: Süregelen Gelir Vergisi Matrahı Toplamı: | H8: 1795.77
A9: Eski Görev Yeri: | C9: MARDİN-ARTUKLU-ABDULKADİR TUTAŞI İLKOKULU | F9: Yabancı Dil Tazminatından Yararlanıp Yararlanmadığı Yararlanıyorsa Grubu: | H9: YARARLANMIYOR.
A10: Yeni Görev Yeri: | C10: MARDİN-NUSAYBİN-SÜLEYMAN BÖLÜNMEZ ANADOLU LİSESİ | F10: Medeni Durumu: | H10: EVLİ
A11: T.C. Kimlik No: | C11: 12345678910 | F11: Lojman Tazminatından Yararlanıp Yararlanmadığı: | H11: YARARLANMIYOR.
A12: Emekli Sicil No: | C12: 123456789 | F12: Diğer Bilgiler: | H12: Personelin diğer bilgileri Say 2000i maaş otomasyon sisteminde kayıtlıdır.
A13: Atama Tarihi: | C13: 2019-01-21 | F13: Açıklama:
A14: Atama Sayısı: | C14: 1393331 | G14: Adı Soyadı
A15: Tebliğ Tarihi: | C15: 2019-01-30 | F15: Düzenleyen | G15: İhsan HOMAN | H15: Okul Müdürü
A16: Öğrenim Durumu: | C16: LİSANS | F16: İl-İlçe Adı | G16: MARDİN | H16: ARTUKLU
A17: Ulaşılabilecek Tel. No: | C17: 5415051234 | F17: NOT 1: Değerli Yönetici Arkadaşım; Personel nakil bildirimi "Parametreler" ve "Personel Nakil Bildirimi" olmak üzere 2 sayfadan oluşmaktadır. Bir Personel nakil bildiriminde olması gereken tüm Parametreler mevcuttur. Yapmanız gereken sadece Yeşil alanları doldurmanızdır. Tüm alanları doldurduktan sonra "Personel Nakil Bildirimi" sayfasında yer alan formun çıktısını almaktır. Bir eksiklik/yanlışlık söz konusu ise lütfen ihsanhmn@gmail.com adresine bildirmeniz yeterli olacaktır. Faydalı olması dileğiyle kolaylıklar diliyorum. | H17: NOT 2: Sadece yeşil renkli alanlara veri girişi yapınız.
A18: Kullanılan İzin Durumları: | C18: Yıllık İzin | D18: Mazeret İzni
C19: … | D19: …
A20: Göreve İlk Başlama Tarihi: | C20: 2010-12-10
A21: Eski Memuriyetten Ayrılış Tarihi: | C21: 2019-01-30
A22: Kıdem Aylığa Esas Hizmet Süresi: | C22: 8 Yıl 1 Ay 20 Gun
A23: Yeni Görev Yerinde Aylığa Hak Kazandığı Tarih: | C23: 15.02.2019 MAAŞINA MÜSTAHAKTIR.
G24: Gerçekleştirme Görevlisi-Şube Müdürü | H24: Abdurrahim TURGUT
G25: Harcama Yetkilisi-İlçe Milli Eğitim Müdürü | H25: Şehmus SÜMER
G26: Muhasebe Yetkilisi-Mal Müdürü
G28: iletişim | H28: ihsanhmn@gmail.com

Sheet Personel Nakil Bildirimi
A1: T.C.
A2: MİLLÎ EĞİTİM BAKANLIĞI
A3: ='Parametreler Personel Nakil Bil'!G16&"-"&'Parametreler Personel Nakil Bil'!H16&" "&"İLÇE MİLLÎ EĞİTİM MÜDÜRLÜĞÜ" -> MARDİN-ARTUKLU İLÇE MİLLÎ EĞİTİM MÜDÜRLÜĞÜ
A4: PERSONEL NAKİL BİLDİRİMİ
A5: Adı Soyadı: | C5: ='Parametreler Personel Nakil Bil'!$C$2 -> İhsan HOMAN
A6: Saymanlık Sistem No: | C6: ='Parametreler Personel Nakil Bil'!$C$3 -> 1234567 | E6: T.C. Kimlik No: | F6: ='Parametreler Personel Nakil Bil'!$C$11 -> 12345678910
A7: Sendika Adı: | C7: ='Parametreler Personel Nakil Bil'!$C$4 -> FREE-SEN | E7: Emekli Sicil No: | F7: ='Parametreler Personel Nakil Bil'!$C$12 -> 123456789
A8: Derece ve Kademesi: | C8: Eski: | D8: ='Parametreler Personel Nakil Bil'!$C$6 -> 4/2 | E8: Yeni: | F8: ='Parametreler Personel Nakil Bil'!$D$6 -> 4/3
A9: Görev Ünvanı: | C9: Eski: | D9: ='Parametreler Personel Nakil Bil'!$C$8 -> ÖĞRETMEN | E9: Yeni: | F9: ='Parametreler Personel Nakil Bil'!$D$8 -> ÖĞRETMEN
A10: Eski Görev Yeri: | C10: ='Parametreler Personel Nakil Bil'!$C$9 -> MARDİN-ARTUKLU-ABDULKADİR TUTAŞI İLKOKULU
A11: Yeni Görev Yeri: | C11: ='Parametreler Personel Nakil Bil'!$C$10 -> MARDİN-NUSAYBİN-SÜLEYMAN BÖLÜNMEZ ANADOLU LİSESİ
A12: Atama Tarihi: | C12: ='Parametreler Personel Nakil Bil'!$C$13 -> 2019-01-21 | E12: Tebliğ Tarihi: | F12: ='Parametreler Personel Nakil Bil'!$C$15 -> 2019-01-30
A13: Atama Sayısı: | C13: ='Parametreler Personel Nakil Bil'!$C$14 -> 1393331 | E13: Öğrenim Durumu: | F13: ='Parametreler Personel Nakil Bil'!$C$16 -> LİSANS
A14: Ulaşılabilecek Tel. No: | C14: ='Parametreler Personel Nakil Bil'!$C$17 -> 5415051234
A15: Kullanılan İzin Durumları: | C15: Yıllık İzin | D15: ='Parametreler Personel Nakil Bil'!$C$19 -> … | E15: Mazeret İzni: | F15: ='Parametreler Personel Nakil Bil'!$D$19 -> …
A16: Göreve İlk Başlama Tarihi: | C16: ='Parametreler Personel Nakil Bil'!$C$20 -> 2010-12-10 | E16: Kıdem Aylığa Esas Hizmet Süresi: | F16: ='Parametreler Personel Nakil Bil'!C22 -> 8 Yıl 1 Ay 20 Gun
A17: Eski Memuriyetten Ayrılış Tarihi: | C17: ='Parametreler Personel Nakil Bil'!$C$21 -> 2019-01-30 | E17: Yeni Görev Yerinde Aylığa Hak Kazandığı Tarih: | F17: ='Parametreler Personel Nakil Bil'!C23 -> 15.02.2019 MAAŞINA MÜSTAHAKTIR.
A18: Şahsi ve Aile Yolluğunu Alıp Almadığı, Almışsa Tutarı: | C18: ='Parametreler Personel Nakil Bil'!$H$2 -> 1311.875 | E18: =UPPER([1]!YaziyaCevir(C18)) -> BİNÜÇYÜZONBİR LİRA SEKSENSEKİZ KURUŞTUR
A19: 15 Gün İçinde Hareket Etmediği Takdirde Gecikme Nedeni: | C19: ='Parametreler Personel Nakil Bil'!$H$3 -> HAREKET EDİLMESİ TEBLİĞ EDİLMİŞTİR.
A20: Eğitime Hazırlık Ödeneği Aldı mı? | C20: ='Parametreler Personel Nakil Bil'!$H$4 -> 2018-2019 EĞİTİM-ÖĞRETİM YILI İÇİN ALMIŞTIR.
A21: Almış Olduğu Sağlık Raporlarının Yıl İçindeki Toplam Süresi (Heyet Raporu Hariç): | C21: ='Parametreler Personel Nakil Bil'!$H$5 -> YOK
A22: Promosyon Bilgisi: | C22: ='Parametreler Personel Nakil Bil'!$H$6 -> 2018-2019-2020 YILLARI İÇİN ALMIŞTIR.
A23: Borçlu İse Borçlarına Ait Bilgiler: | C23: ='Parametreler Personel Nakil Bil'!$H$7 -> BİLİNEN BORCU YOKTUR.
A24: Süregelen Gelir Vergisi Matrahı Toplamı: | C24: ='Parametreler Personel Nakil Bil'!$H$8 -> 1795.77
A25: Yabancı Dil Tazminatından Yararlanıp Yararlanmadığı Yararlanıyorsa Grubu: | C25: ='Parametreler Personel Nakil Bil'!$H$9 -> YARARLANMIYOR.
A26: Medeni Durumu: | C26: ='Parametreler Personel Nakil Bil'!$H$10 -> EVLİ
A27: Lojman Tazminatından Yararlanıp Yararlanmadığı: | C27: ='Parametreler Personel Nakil Bil'!$H$11 -> YARARLANMIYOR.
A28: Açıklama: | C28: ='Parametreler Personel Nakil Bil'!$H$12 -> Personelin diğer bilgileri Say 2000i maaş otomasyon sisteminde kayıtlıdır.
A30: İmzası
B31: Düzenleyen | C31: Gerçekleştirme Görevlisi | E31: Harcama Yetkilisi | F31: Muhasebe Yetkilisi
A32: Adı Soyadı | B32: ='Parametreler Personel Nakil Bil'!$G$15 -> İhsan HOMAN | C32: ='Parametreler Personel Nakil Bil'!H24 -> Abdurrahim TURGUT | E32: ='Parametreler Personel Nakil Bil'!H25 -> Şehmus SÜMER | F32: ='Parametreler Personel Nakil Bil'!H26 -> 0
A33: Unvanı | B33: ='Parametreler Personel Nakil Bil'!$H$15 -> Okul Müdürü | C33: Şube Müdürü | E33: İlçe Milli Eğitim Müdürü | F33: Mal Müdürü

Sheet Nakit (hidden)
A1: R
C3: ÖDEME EMRİ BELGESİ
C5: Muhasebe Birimi Kodu | G5: 25108
C6: Muhasebe Birimi Adı | G6: ='Parametreler Yolluk'!E22 -> Boş bırakılabilir. | O6: Bütçe Yılı | Q6: 2012 | T6: İlgilinin | U6: Adı Soyadı | X6: =memur -> İhsan HOMAN
C7: Kurum-Birim Kodu | G7: 1 | H7: 2 | I7: BİRİM | K7: Yevmiyenin | O7: Tarihi | Q7: =TODAY() -> 2019-07-01 | U7: T.C. / Vergi Kimlik No | X7: =vno -> 12345678910
G8: 13 | H8: 62 | I8: 306 | O8: No' su | U8: Banka Şube Adı | X8: ='Parametreler Yolluk'!E24 -> Boş bırakılabilir.
C9: Kurum Adı | G9: Milli Eğitim Bakanlığı | O9: PERSONEL SÜREKLİ | U9: Banka Hesap Numarası | X9: ='Parametreler Yolluk'!E23 -> Boş bırakılabilir.
C10: Birim Adı | G10: ='Parametreler Yolluk'!D13 -> 0 | O10: GÖREV YOLLUĞU | U10: Bağlı Olduğu Vergi Dairesi | X10: ='Parametreler Yolluk'!E22 -> Boş bırakılabilir.
C12: Hesap No | D12: Kurumsal Kod | H12: Fonksiyonel Kod | L12: Finans Kodu | N12: Ekonomik / Ayrıntı Kodu | R12: T U T A R | W12: Hesap / Ayrıntı Adı
R13: BORÇ | U13: ALACAK
D14: 1 | E14: 2 | F14: 3 | G14: 4 | H14: 1 | I14: 2 | J14: 3 | K14: 4 | L14: 1 | N14: 1 | O14: 2 | P14: 3 | Q14: 4 | R14: YTL | T14: YKr | U14: YTL | V14: YKr | AA14: BORÇ | AB14: ALACAK
C15: 630 | D15: 13 | E15: 1 | F15: 31 | G15: 62 | H15: 09 | I15: 9 | J15: 9 | K15: 05 | L15: 1 | N15: 03 | O15: 3 | P15: 2 | Q15: 01 | R15: =IF(AA15="","",INT(AA15)) -> 1311 | T15: =IF(AA15="","",(AA15-INT(AA15))*100) -> 87.5 | W15: =AC15 -> Sürekli Görev Yolluğu | AA15: =Yolluk!O26 -> 1311.875 | AC15: Sürekli Görev Yolluğu
C16: 600 | N16: 01 | O16: 5 | P16: 1 | Q16: 01 | U16: =R15*8.25/1000 -> 10.81575 | V16: 41 | W16: =AC16 -> Damga Vergisi | AB16: =ROUND(AA15*0.0075,2) -> 9.84 | AC16: Damga Vergisi
C17: 325 | N17: 2 | O17: 0 | P17: 0 | Q17: 0 | U17: =R15-U16 -> 1300.18425 | V17: 1 | W17: Verilen Gönderme Emri Hesabı | AB17: =ROUND(AA15-AB16,2) -> 1302.04 | AC17: Verilen Gönderme Emri Hesabı
R18: =IF(AA18="","",INT(AA18)) -> 1311 | T18: =IF(AA18="","",(AA18-INT(AA18))*100) -> 87.5 | U18: =IF(AB18="","",INT(AB18)) -> 1311 | V18: =IF(AB18="","",(AB18-INT(AB18))*100) -> 87.5 | W18: TAHAKKUK TOPLAMLARI | AA18: =AA15 -> 1311.875 | AB18: =AA15 -> 1311.875 | AC18: TAHAKKUK TOPLAMLARI
C19: 630 | D19: =D15 -> 13 | E19: =E15 -> 1 | F19: 31 | G19: 62 | H19: 09 | I19: 9 | J19: 9 | K19: 05 | L19: 1 | N19: =N15 -> 03 | O19: =O15 -> 3 | P19: =P15 -> 2 | Q19: =Q15 -> 01 | R19: =IF(AA19="","",INT(AA19)) -> 1311 | T19: =IF(AA19="","",(AA19-INT(AA19))*100) -> 87.5 | W19: Sürekli Görev Yolluğu | AA19: =AA15 -> 1311.875 | AC19: Sürekli Görev Yolluğu
C20: 835 | U20: =IF(AB20="","",INT(AB20)) -> 1311 | V20: =IF(AB20="","",(AB20-INT(AB20))*100) -> 87.5 | W20: Gider Yansıtma Hesabı | AB20: =AA15 -> 1311.875 | AC20: Gider Yansıtma Hesabı
C21: 805 | R21: =U16 -> 10.81575 | T21: =IF(AA21="","",(AA21-INT(AA21))*100) -> 84 | W21: Gelir Yansıtma Hesabı | AA21: =AB16 -> 9.84 | AC21: Gelir Yansıtma Hesabı
C22: 600 | N22: =N16 -> 01 | O22: =O16 -> 5 | P22: =P16 -> 1 | Q22: =Q16 -> 01 | U22: =U16 -> 10.81575 | V22: 41 | W22: Damga Vergisi | AB22: =AB16 -> 9.84 | AC22: Damga Vergisi
AA24: =SUM(AA18:AA23) -> 2633.59 | AB24: =SUM(AB18:AB23) -> 2633.59 | AC24: TOPLAM
AA25: =AA15 -> 1311.875 | AB25: =AA15 -> 1311.875 | AC25: Bütçe Gideri Tahakkuk Toplamı
K42: T O P L A M | R42: =IF(AA24="","",INT(AA24)) -> 2633 | T42: =IF(AA24="","",(AA24-INT(AA24))*100) -> 59 | U42: =IF(AB24="","",INT(AB24)) -> 2633 | V42: =IF(AB24="","",(AB24-INT(AB24))*100) -> 59 | W42: =IF(AA24<>AB24," ! HATA VAR !"," " ) -> 
C43: Bütçe Gideri Tahakkuk Toplamı | R43: =IF(AA25="","",INT(AA25)) -> 1311 | T43: =IF(AA25="","",(AA15-INT(AA25))*100) -> 87.5 | U43: =IF(AB25="","",INT(AB25)) -> 1311 | V43: =IF(AB25="","",(AB25-INT(AB25))*100) -> 87.5 | W43: =IF(AA25<>AB25," ! HATA VAR !"," " ) -> 
C45: ="Yukarıda yazılı # "&ParaCevir(G50+J50/100)&"# Bütçe Gideri tahakkuk ettirilmiştir. Ödenmesi / Mahsubu gerekir." -> 
C47: Ödeme Emri Belgesi No | G47: Bütçe Gideri | K47: Kesinti Toplamı | O47: Ödenmesi Gereken | S47: Çek / Gönderme Emri No. | W47: =Q7 -> 2019-07-01
G48: Tahakkuk Toplamı | W48: Düzenleyen
G49: YTL | J49: YKr | K49: YTL | N49: YKr | O49: YTL | R49: YKr
G50: =IF(AA15="","",INT(AA15)) -> 1311 | J50: =IF(AA15="","",(AA15-INT(AA15))*100) -> 87.5 | K50: =R15*8.25/1000 -> 10.81575 | N50: 41 | O50: =U17 -> 1300.18425 | R50: 1 | W50: ='Parametreler Yolluk'!E14 -> Abdulkadir Tutaşı İlkokulu
W51: ='Parametreler Yolluk'!E15 -> 0
C53: T E T K İ K E D E N | S53: AÇIKLAMA VE EKLER
C54: Memur | H54: Şef | M54: Muhasebe Yetkilisi Yrd.
S55: 1 | T55: Adet Personel Nakil Bildirimi
C56: ÖDEMEYE ESAS BELGENİN | S56: 1 | T56: Adet Atama Kararnamesi
C57: Türü | H57: Tarihi | K57: No' su | O57: Tutarı | S57: 1 | T57: Adet Göreve Başlama Yazısı
O58: YTL | Q58: YKr
C62: Kontrol Edilmiş ve Uygun Görülmüştür | L62: Uygundur | U62: Ödeyiniz / Mahsup Ediniz
C64: ..... / ... / 2012 | L64: =C64 -> ..... / ... / 2012 | U64: …/../2012
C66: Gerçekleştirme Görevlisi | L66: Harcama Yetkilisi | U66: Muhasebe Yetkilisi
C67: ='Parametreler Yolluk'!E16 -> İhsan HOMAN | U67: ='Parametreler Yolluk'!E20 -> Boş bırakılabilir.
C68: ='Parametreler Yolluk'!E17 -> Okul Müdürü | L68: İlçe Milli Eğitim Müdürü | U68: ='Parametreler Yolluk'!E21 -> Boş bırakılabilir.
C71: ="Yalnız # "&ParaCevir(O50+R50/100)&"# aldım." ->  | X71: İmza: .......................

Sheet metem (hidden)
A1: R
C3: ÖDEME EMRİ BELGESİ
C5: Muhasebe Birimi Kodu | G5: 25108
C6: Muhasebe Birimi Adı | G6: ='Parametreler Yolluk'!E22 -> Boş bırakılabilir. | O6: Bütçe Yılı | Q6: 2011 | T6: İlgilinin | U6: Adı Soyadı | X6: =memur -> İhsan HOMAN
C7: Kurum-Birim Kodu | G7: 1 | H7: 2 | I7: BİRİM | K7: Yevmiyenin | O7: Tarihi | Q7: =TODAY() -> 2019-07-01 | U7: T.C. / Vergi Kimlik No | X7: =vno -> 12345678910
G8: 13 | H8: 1 | I8: 285 | O8: No' su | U8: Banka Şube Adı | X8: ='Parametreler Yolluk'!E24 -> Boş bırakılabilir.
C9: Kurum Adı | O9: PERSONEL SÜREKLİ | U9: Banka Hesap Numarası | X9: ='Parametreler Yolluk'!E23 -> Boş bırakılabilir.
C10: Birim Adı | G10: HALK EĞİTİM MERKEZİ | O10: GÖREV YOLLUĞU | U10: Bağlı Olduğu Vergi Dairesi | X10: ='Parametreler Yolluk'!E22 -> Boş bırakılabilir.
C12: Hesap No | D12: Kurumsal Kod | H12: Fonksiyonel Kod | L12: Finans Kodu | N12: Ekonomik / Ayrıntı Kodu | R12: T U T A R | W12: Hesap / Ayrıntı Adı
R13: BORÇ | U13: ALACAK
D14: 1 | E14: 2 | F14: 3 | G14: 4 | H14: 1 | I14: 2 | J14: 3 | K14: 4 | L14: 1 | N14: 1 | O14: 2 | P14: 3 | Q14: 4 | R14: YTL | T14: YKr | U14: YTL | V14: YKr | AA14: BORÇ | AB14: ALACAK
C15: 630 | D15: 13 | E15: 1 | F15: 38 | G15: 0 | H15: 09 | I15: 9 | J15: 9 | K15: 05 | L15: 1 | N15: 03 | O15: 3 | P15: 2 | Q15: 01 | R15: =IF(AA15="","",INT(AA15)) -> 1311 | T15: =IF(AA15="","",(AA15-INT(AA15))*100) -> 87.5 | W15: =AC15 -> Sürekli Görev Yolluğu | AA15: =Yolluk!O26 -> 1311.875 | AC15: Sürekli Görev Yolluğu
C16: 600 | N16: 01 | O16: 5 | P16: 1 | Q16: 01 | U16: =R15*8.25/1000 -> 10.81575 | V16: =IF(AB16="","",(AB16-INT(AB16))*100) -> 84 | W16: Damga Vergisi | AB16: =ROUND(AA15*0.0075,2) -> 9.84 | AC16: Damga Vergisi
C17: 325 | N17: 2 | O17: 0 | P17: 0 | Q17: 0 | U17: 1125 | V17: =IF(AB17="","",(AB17-INT(AB17))*100) -> 4 | W17: Verilen Gönderme Emri Hesabı | AB17: =ROUND(AA15-AB16,2) -> 1302.04 | AC17: Verilen Gönderme Emri Hesabı
R18: =IF(AA18="","",INT(AA18)) -> 1311 | T18: =IF(AA18="","",(AA18-INT(AA18))*100) -> 87.5 | U18: =IF(AB18="","",INT(AB18)) -> 1311 | V18: =IF(AB18="","",(AB18-INT(AB18))*100) -> 87.5 | W18: TAHAKKUK TOPLAMLARI | AA18: =AA15 -> 1311.875 | AB18: =AA15 -> 1311.875 | AC18: TAHAKKUK TOPLAMLARI
C19: 630 | D19: =D15 -> 13 | E19: 1 | F19: 38 | G19: 0 | H19: 09 | I19: 9 | J19: 9 | K19: 05 | L19: 1 | N19: =N15 -> 03 | O19: =O15 -> 3 | P19: =P15 -> 2 | Q19: =Q15 -> 01 | R19: =IF(AA19="","",INT(AA19)) -> 1311 | T19: =IF(AA19="","",(AA19-INT(AA19))*100) -> 87.5 | W19: Sürekli Görev Yolluğu | AA19: =AA15 -> 1311.875 | AC19: Sürekli Görev Yolluğu
C20: 835 | U20: =IF(AB20="","",INT(AB20)) -> 1311 | V20: =IF(AB20="","",(AB20-INT(AB20))*100) -> 87.5 | W20: Gider Yansıtma Hesabı | AB20: =AA15 -> 1311.875 | AC20: Gider Yansıtma Hesabı
C21: 805 | R21: =IF(AA21="","",INT(AA21)) -> 9 | T21: =IF(AA21="","",(AA21-INT(AA21))*100) -> 84 | W21: Gelir Yansıtma Hesabı | AA21: =AB16 -> 9.84 | AC21: Gelir Yansıtma Hesabı
C22: 600 | N22: =N16 -> 01 | O22: =O16 -> 5 | P22: =P16 -> 1 | Q22: =Q16 -> 01 | U22: =IF(AB22="","",INT(AB22)) -> 9 | V22: =IF(AB22="","",(AB22-INT(AB22))*100) -> 84 | W22: Damga Vergisi | AB22: =AB16 -> 9.84 | AC22: Damga Vergisi
AA24: =SUM(AA18:AA23) -> 2633.59 | AB24: =SUM(AB18:AB23) -> 2633.59 | AC24: TOPLAM
AA25: =AA15 -> 1311.875 | AB25: =AA15 -> 1311.875 | AC25: Bütçe Gideri Tahakkuk Toplamı
K42: T O P L A M | R42: =IF(AA24="","",INT(AA24)) -> 2633 | T42: =IF(AA24="","",(AA24-INT(AA24))*100) -> 59 | U42: =IF(AB24="","",INT(AB24)) -> 2633 | V42: =IF(AB24="","",(AB24-INT(AB24))*100) -> 59 | W42: =IF(AA24<>AB24," ! HATA VAR !"," " ) -> 
C43: Bütçe Gideri Tahakkuk Toplamı | R43: =IF(AA25="","",INT(AA25)) -> 1311 | T43: =IF(AA25="","",(AA15-INT(AA25))*100) -> 87.5 | U43: =IF(AB25="","",INT(AB25)) -> 1311 | V43: =IF(AB25="","",(AB25-INT(AB25))*100) -> 87.5 | W43: =IF(AA25<>AB25," ! HATA VAR !"," " ) -> 
C45: ="Yukarıda yazılı # "&ParaCevir(G50+J50/100)&"# Bütçe Gideri tahakkuk ettirilmiştir. Ödenmesi / Mahsubu gerekir." -> 
C47: Ödeme Emri Belgesi No | G47: Bütçe Gideri | K47: Kesinti Toplamı | O47: Ödenmesi Gereken | S47: Çek / Gönderme Emri No. | W47: =Q7 -> 2019-07-01
G48: Tahakkuk Toplamı | W48: Düzenleyen
G49: YTL | J49: YKr | K49: YTL | N49: YKr | O49: YTL | R49: YKr
G50: =IF(AA15="","",INT(AA15)) -> 1311 | J50: =IF(AA15="","",(AA15-INT(AA15))*100) -> 87.5 | K50: =IF(AB16="","",(INT(AB16))) -> 9 | N50: =IF(AB16="","",(AB16-INT(AB16))*100) -> 84 | O50: 1125 | R50: =IF(AA15="","",(AB17-INT(AB17))*100) -> 4 | W50: ='Parametreler Yolluk'!E14 -> Abdulkadir Tutaşı İlkokulu
C53: T E T K İ K E D E N | S53: AÇIKLAMA VE EKLER
C54: Memur | H54: Şef | M54: Muhasebe Yetkilisi Yrd.
S55: 1 | T55: Adet Personel Nakil Bildirimi
C56: ÖDEMEYE ESAS BELGENİN | S56: 1 | T56: Adet Atama Kararnamesi
C57: Türü | H57: Tarihi | K57: No' su | O57: Tutarı | S57: 1 | T57: Adet Göreve Başlama Yazısı
O58: YTL | Q58: YKr
C62: Kontrol Edilmiş ve Uygun Görülmüştür | L62: Uygundur | U62: Ödeyiniz / Mahsup Ediniz
C64: ..... / 08 / 2011 | L64: =C64 -> ..... / 08 / 2011 | U64: …/08/2011
C66: Gerçekleştirme Görevlisi | L66: Harcama Yetkilisi | U66: Muhasebe Yetkilisi
C67: ='Parametreler Yolluk'!E16 -> İhsan HOMAN | L67: ='Parametreler Yolluk'!E18 -> Boş bırakılabilir. | U67: ='Parametreler Yolluk'!E20 -> Boş bırakılabilir.
C68: ='Parametreler Yolluk'!E17 -> Okul Müdürü | U68: ='Parametreler Yolluk'!E21 -> Boş bırakılabilir.
C71: ="Yalnız # "&ParaCevir(O50+R50/100)&"# aldım." ->  | X71: İmza: .......................

Sheet LİSE (hidden)
A1: R
C3: ÖDEME EMRİ BELGESİ
C5: Muhasebe Birimi Kodu | G5: 25108
C6: Muhasebe Birimi Adı | G6: ='Parametreler Yolluk'!E22 -> Boş bırakılabilir. | O6: Bütçe Yılı | Q6: 2012 | T6: İlgilinin | U6: Adı Soyadı | X6: =memur -> İhsan HOMAN
C7: Kurum-Birim Kodu | G7: 1 | H7: 2 | I7: BİRİM | K7: Yevmiyenin | O7: Tarihi | Q7: =TODAY() -> 2019-07-01 | U7: T.C. / Vergi Kimlik No | X7: =vno -> 12345678910
G8: 13 | H8: 62 | I8: 306 | O8: No' su | U8: Banka Şube Adı | X8: ='Parametreler Yolluk'!E24 -> Boş bırakılabilir.
C9: Kurum Adı | G9: Milli Eğitim Bakanlığı | O9: PERSONEL SÜREKLİ | U9: Banka Hesap Numarası | X9: ='Parametreler Yolluk'!E23 -> Boş bırakılabilir.
C10: Birim Adı | G10: ORTAÖĞRETİM | O10: GÖREV YOLLUĞU | U10: Bağlı Olduğu Vergi Dairesi | X10: ='Parametreler Yolluk'!E22 -> Boş bırakılabilir.
C12: Hesap No | D12: Kurumsal Kod | H12: Fonksiyonel Kod | L12: Finans Kodu | N12: Ekonomik / Ayrıntı Kodu | R12: T U T A R | W12: Hesap / Ayrıntı Adı
R13: BORÇ | U13: ALACAK
D14: 1 | E14: 2 | F14: 3 | G14: 4 | H14: 1 | I14: 2 | J14: 3 | K14: 4 | L14: 1 | N14: 1 | O14: 2 | P14: 3 | Q14: 4 | R14: YTL | T14: YKr | U14: YTL | V14: YKr | AA14: BORÇ | AB14: ALACAK
C15: 630 | D15: 13 | E15: 1 | F15: 32 | G15: 62 | H15: 09 | I15: 9 | J15: 9 | K15: 05 | L15: 1 | N15: 03 | O15: 3 | P15: 2 | Q15: 01 | R15: =IF(AA15="","",INT(AA15)) -> 1311 | T15: =IF(AA15="","",(AA15-INT(AA15))*100) -> 87.5 | W15: =AC15 -> Sürekli Görev Yolluğu | AA15: =Yolluk!O26 -> 1311.875 | AC15: Sürekli Görev Yolluğu
C16: 600 | N16: 01 | O16: 5 | P16: 1 | Q16: 01 | U16: =R15*8.25/1000 -> 10.81575 | V16: =IF(AB16="","",(AB16-INT(AB16))*100) -> 84 | W16: Damga Vergisi | AB16: =ROUND(AA15*0.0075,2) -> 9.84 | AC16: Damga Vergisi
C17: 325 | N17: 2 | O17: 0 | P17: 0 | Q17: 0 | U17: 892 | V17: =IF(AB17="","",(AB17-INT(AB17))*100) -> 4 | W17: Verilen Gönderme Emri Hesabı | AB17: =ROUND(AA15-AB16,2) -> 1302.04 | AC17: Verilen Gönderme Emri Hesabı
R18: =IF(AA18="","",INT(AA18)) -> 1311 | T18: =IF(AA18="","",(AA18-INT(AA18))*100) -> 87.5 | U18: =IF(AB18="","",INT(AB18)) -> 1311 | V18: =IF(AB18="","",(AB18-INT(AB18))*100) -> 87.5 | W18: TAHAKKUK TOPLAMLARI | AA18: =AA15 -> 1311.875 | AB18: =AA15 -> 1311.875 | AC18: TAHAKKUK TOPLAMLARI
C19: 630 | D19: =D15 -> 13 | E19: 1 | F19: 32 | G19: 62 | H19: 09 | I19: 9 | J19: 9 | K19: 05 | L19: 1 | N19: =N15 -> 03 | O19: =O15 -> 3 | P19: =P15 -> 2 | Q19: =Q15 -> 01 | R19: =IF(AA19="","",INT(AA19)) -> 1311 | T19: =IF(AA19="","",(AA19-INT(AA19))*100) -> 87.5 | W19: Sürekli Görev Yolluğu | AA19: =AA15 -> 1311.875 | AC19: Sürekli Görev Yolluğu
C20: 835 | U20: =IF(AB20="","",INT(AB20)) -> 1311 | V20: =IF(AB20="","",(AB20-INT(AB20))*100) -> 87.5 | W20: Gider Yansıtma Hesabı | AB20: =AA15 -> 1311.875 | AC20: Gider Yansıtma Hesabı
C21: 805 | R21: =IF(AA21="","",INT(AA21)) -> 9 | T21: =IF(AA21="","",(AA21-INT(AA21))*100) -> 84 | W21: Gelir Yansıtma Hesabı | AA21: =AB16 -> 9.84 | AC21: Gelir Yansıtma Hesabı
C22: 600 | N22: =N16 -> 01 | O22: =O16 -> 5 | P22: =P16 -> 1 | Q22: =Q16 -> 01 | U22: =IF(AB22="","",INT(AB22)) -> 9 | V22: =IF(AB22="","",(AB22-INT(AB22))*100) -> 84 | W22: Damga Vergisi | AB22: =AB16 -> 9.84 | AC22: Damga Vergisi
AA24: =SUM(AA18:AA23) -> 2633.59 | AB24: =SUM(AB18:AB23) -> 2633.59 | AC24: TOPLAM
AA25: =AA15 -> 1311.875 | AB25: =AA15 -> 1311.875 | AC25: Bütçe Gideri Tahakkuk Toplamı
K42: T O P L A M | R42: =IF(AA24="","",INT(AA24)) -> 2633 | T42: =IF(AA24="","",(AA24-INT(AA24))*100) -> 59 | U42: =IF(AB24="","",INT(AB24)) -> 2633 | V42: =IF(AB24="","",(AB24-INT(AB24))*100) -> 59 | W42: =IF(AA24<>AB24," ! HATA VAR !"," " ) -> 
C43: Bütçe Gideri Tahakkuk Toplamı | R43: =IF(AA25="","",INT(AA25)) -> 1311 | T43: =IF(AA25="","",(AA15-INT(AA25))*100) -> 87.5 | U43: =IF(AB25="","",INT(AB25)) -> 1311 | V43: =IF(AB25="","",(AB25-INT(AB25))*100) -> 87.5 | W43: =IF(AA25<>AB25," ! HATA VAR !"," " ) -> 
C45: ="Yukarıda yazılı # "&ParaCevir(G50+J50/100)&"# Bütçe Gideri tahakkuk ettirilmiştir. Ödenmesi / Mahsubu gerekir." -> 
C47: Ödeme Emri Belgesi No | G47: Bütçe Gideri | K47: Kesinti Toplamı | O47: Ödenmesi Gereken | S47: Çek / Gönderme Emri No. | W47: =Q7 -> 2019-07-01
G48: Tahakkuk Toplamı | W48: Düzenleyen
G49: YTL | J49: YKr | K49: YTL | N49: YKr | O49: YTL | R49: YKr
G50: =IF(AA15="","",INT(AA15)) -> 1311 | J50: =IF(AA15="","",(AA15-INT(AA15))*100) -> 87.5 | K50: 7 | N50: =IF(AB16="","",(AB16-INT(AB16))*100) -> 84 | O50: 892 | R50: =IF(AA15="","",(AB17-INT(AB17))*100) -> 4 | W50: ='Parametreler Yolluk'!E14 -> Abdulkadir Tutaşı İlkokulu
W51: ='Parametreler Yolluk'!E15 -> 0
C53: T E T K İ K E D E N | S53: AÇIKLAMA VE EKLER
C54: Memur | H54: Şef | M54: Muhasebe Yetkilisi Yrd.
S55: 1 | T55: Adet Personel Nakil Bildirimi
C56: ÖDEMEYE ESAS BELGENİN | S56: 1 | T56: Adet Atama Kararnamesi
C57: Türü | H57: Tarihi | K57: No' su | O57: Tutarı | S57: 1 | T57: Adet Göreve Başlama Yazısı
O58: YTL | Q58: YKr
C62: Kontrol Edilmiş ve Uygun Görülmüştür | L62: Uygundur | U62: Ödeyiniz / Mahsup Ediniz
C64: …/05/2010 | L64: =C64 -> …/05/2010 | U64: …/05/2010
C66: Gerçekleştirme Görevlisi | L66: Harcama Yetkilisi | U66: Muhasebe Yetkilisi
C67: ='Parametreler Yolluk'!E16 -> İhsan HOMAN | L67: ='Parametreler Yolluk'!E18 -> Boş bırakılabilir. | U67: ='Parametreler Yolluk'!E20 -> Boş bırakılabilir.
C68: ='Parametreler Yolluk'!E17 -> Okul Müdürü | L68: İlçe Milli Eğitim Müdürü | U68: ='Parametreler Yolluk'!E21 -> Boş bırakılabilir.
C71: ="Yalnız # "&ParaCevir(O50+R50/100)&"# aldım." ->  | X71: İmza: .......................
